[Event "January 9 Late 2024"]
[Site "https://www.chess.com"]
[Date "2024.01.09"]
[Round "8"]
[White "Antunes, Luciano Justi"]
[Black "Skaric, Djuro"]
[Result "1-0"]
[Board "155"]
[TimeControl "180+1"]
[WhiteFideId "2126893"]
[BlackFideId "934569"]
[WhiteElo "2117"]
[BlackElo "2303"]
[WhiteTeam "BRA"]
[BlackTeam "SRB"]
[WhiteClock "0:00:08"]
[BlackClock "0:00:04"]

1. d4 {[%clk 0:03:00]}  d6 {[%clk 0:02:59]} 2. e4 {[%clk 0:02:58]}  g6 {[%clk 0:03:00]} 3. Nc3 {[%clk 0:02:56]}  Bg7 {[%clk 0:03:00]} 4. Be3 {[%clk 0:02:56]}  Nf6 {[%clk 0:03:01]} 5. f3 {[%clk 0:02:53]}  O-O {[%clk 0:03:00]} 6. Qd2 {[%clk 0:02:54]}  Nc6 {[%clk 0:02:59]} 7. Nge2 {[%clk 0:02:53]}  e5 {[%clk 0:02:57]} 8. d5 {[%clk 0:02:53]}  Ne7 {[%clk 0:02:56]} 9. g4 {[%clk 0:02:50]}  c6 {[%clk 0:02:55]} 10. g5 {[%clk 0:02:47]}  Nh5 {[%clk 0:02:52]} 11. O-O-O {[%clk 0:02:42]}  c5 {[%clk 0:02:40]} 12. Ng3 {[%clk 0:02:35]}  a6 {[%clk 0:02:36]} 13. Nxh5 {[%clk 0:02:25]}  gxh5 {[%clk 0:02:36]} 14. h4 {[%clk 0:02:11]}  Ng6 {[%clk 0:02:31]} 15. Ne2 {[%clk 0:02:10]}  b5 {[%clk 0:02:31]} 16. Kb1 {[%clk 0:02:10]}  b4 {[%clk 0:02:31]} 17. Bh3 {[%clk 0:01:58]}  Bxh3 {[%clk 0:02:29]} 18. Rxh3 {[%clk 0:01:58]}  Qd7 {[%clk 0:02:29]} 19. Rh2 {[%clk 0:01:58]}  a5 {[%clk 0:02:28]} 20. Ng3 {[%clk 0:01:57]}  Nf4 {[%clk 0:02:25]} 21. Bxf4 {[%clk 0:01:56]}  exf4 {[%clk 0:02:25]} 22. Nxh5 {[%clk 0:01:56]}  Be5 {[%clk 0:02:19]} 23. Nf6+ {[%clk 0:01:53]}  Bxf6 {[%clk 0:02:17]} 24. gxf6 {[%clk 0:01:54]}  Kh8 {[%clk 0:02:17]} 25. Qxf4 {[%clk 0:01:33]}  Rg8 {[%clk 0:02:16]} 26. Rc1 {[%clk 0:01:23]}  Rae8 {[%clk 0:02:11]} 27. h5 {[%clk 0:01:20]}  Re5 {[%clk 0:02:10]} 28. Rh4 {[%clk 0:01:18]}  Reg5 {[%clk 0:02:07]} 29. b3 {[%clk 0:01:12]}  h6 {[%clk 0:02:06]} 30. Re1 {[%clk 0:01:10]}  Kh7 {[%clk 0:01:59]} 31. e5 {[%clk 0:01:04]}  dxe5 {[%clk 0:01:59]} 32. Rxe5 {[%clk 0:01:04]}  a4 {[%clk 0:01:57]} 33. bxa4 {[%clk 0:00:52]}  Rg1+ {[%clk 0:01:46]} 34. Kb2 {[%clk 0:00:51]}  Qxa4 {[%clk 0:01:45]} 35. Qe4+ {[%clk 0:00:43]}  Kh8 {[%clk 0:01:44]} 36. Qd3 {[%clk 0:00:42]}  Ra8 {[%clk 0:01:21]} 37. Qb3 {[%clk 0:00:39]}  Rg2 {[%clk 0:01:17]} 38. Qxa4 {[%clk 0:00:34]}  Rxa4 {[%clk 0:01:16]} 39. Rg4 {[%clk 0:00:34]}  Rxg4 {[%clk 0:01:13]} 40. fxg4 {[%clk 0:00:34]}  Ra6 {[%clk 0:01:08]} 41. Rf5 {[%clk 0:00:33]}  Kg8 {[%clk 0:01:01]} 42. Kb3 {[%clk 0:00:33]}  Ra3+ {[%clk 0:01:00]} 43. Kb2 {[%clk 0:00:31]}  Kf8 {[%clk 0:00:55]} 44. g5 {[%clk 0:00:31]}  hxg5 {[%clk 0:00:55]} 45. Rxg5 {[%clk 0:00:31]}  Ke8 {[%clk 0:00:55]} 46. d6 {[%clk 0:00:29]}  Kd7 {[%clk 0:00:53]} 47. Rg7 {[%clk 0:00:28]}  Kxd6 {[%clk 0:00:52]} 48. Rxf7 {[%clk 0:00:29]}  Rh3 {[%clk 0:00:52]} 49. Rh7 {[%clk 0:00:26]}  c4 {[%clk 0:00:48]} 50. f7 {[%clk 0:00:26]}  Ke7 {[%clk 0:00:48]} 51. h6 {[%clk 0:00:26]}  Kf8 {[%clk 0:00:45]} 52. Rh8+ {[%clk 0:00:20]}  Kxf7 {[%clk 0:00:46]} 53. Rb8 {[%clk 0:00:19]}  b3 {[%clk 0:00:28]} 54. axb3 {[%clk 0:00:18]}  cxb3 {[%clk 0:00:28]} 55. Rxb3 {[%clk 0:00:18]}  Rxh6 {[%clk 0:00:28]} 56. Rb7+ {[%clk 0:00:18]}  Ke8 {[%clk 0:00:28]} 57. Kb3 {[%clk 0:00:17]}  Kd8 {[%clk 0:00:28]} 58. Kb4 {[%clk 0:00:16]}  Kc8 {[%clk 0:00:28]} 59. Rg7 {[%clk 0:00:16]}  Rb6+ {[%clk 0:00:27]} 60. Kc5 {[%clk 0:00:15]}  Rh6 {[%clk 0:00:25]} 61. c4 {[%clk 0:00:15]}  Kb8 {[%clk 0:00:25]} 62. Kb5 {[%clk 0:00:14]}  Rh5+ {[%clk 0:00:20]} 63. c5 {[%clk 0:00:14]}  Rh1 {[%clk 0:00:20]} 64. Rf7 {[%clk 0:00:12]}  Rb1+ {[%clk 0:00:20]} 65. Kc6 {[%clk 0:00:12]}  Rh1 {[%clk 0:00:18]} 66. Rf8+ {[%clk 0:00:12]}  Ka7 {[%clk 0:00:18]} 67. Kc7 {[%clk 0:00:13]}  Rh7+ {[%clk 0:00:17]} 68. Kc6 {[%clk 0:00:11]}  Rh6+ {[%clk 0:00:17]} 69. Kb5 {[%clk 0:00:12]}  Rh5 {[%clk 0:00:17]} 70. Rf7+ {[%clk 0:00:12]}  Kb8 {[%clk 0:00:16]} 71. Rg7 {[%clk 0:00:12]}  Rh1 {[%clk 0:00:13]} 72. Rg6 {[%clk 0:00:11]}  Rb1+ {[%clk 0:00:12]} 73. Kc6 {[%clk 0:00:11]}  Ka7 {[%clk 0:00:12]} 74. Rg7+ {[%clk 0:00:11]}  Kb8 {[%clk 0:00:10]} 75. Rg8+ {[%clk 0:00:11]}  Ka7 {[%clk 0:00:10]} 76. Kc7 {[%clk 0:00:11]}  Rc1 {[%clk 0:00:10]} 77. c6 {[%clk 0:00:11]}  Ka6 {[%clk 0:00:09]} 78. Rg3 {[%clk 0:00:10]}  Kb5 {[%clk 0:00:08]} 79. Rb3+ {[%clk 0:00:10]}  Kc5 {[%clk 0:00:08]} 80. Rb2 {[%clk 0:00:09]}  Kd5 {[%clk 0:00:07]} 81. Rd2+ {[%clk 0:00:09]}  Kc5 {[%clk 0:00:07]} 82. Kd7 {[%clk 0:00:10]}  Kb6 {[%clk 0:00:06]} 83. Rb2+ {[%clk 0:00:07]}  Ka7 {[%clk 0:00:05]} 84. c7 {[%clk 0:00:08]}  Rd1+ {[%clk 0:00:05]} 85. Kc8 {[%clk 0:00:08]}  Ka8 {[%clk 0:00:04]} 86. Ra2# {[%clk 0:00:08]} 1-0

[Event "January 9 Late 2024"]
[Site "https://www.chess.com"]
[Date "2024.01.10"]
[Round "8"]
[White "Kargosha, Bahman"]
[Black "Reinecke, Katharina"]
[Result "1-0"]
[Board "156"]
[TimeControl "180+1"]
[WhiteFideId "12503452"]
[BlackFideId "12929727"]
[WhiteElo "2298"]
[BlackElo "2029"]
[WhiteTeam "AUS"]
[BlackTeam "GER"]
[WhiteClock "0:00:30"]
[BlackClock "0:00:11"]

1. d4 {[%clk 0:03:00]}  d5 {[%clk 0:02:59]} 2. c4 {[%clk 0:03:01]}  c6 {[%clk 0:02:59]} 3. Nc3 {[%clk 0:03:00]}  Nf6 {[%clk 0:02:59]} 4. e3 {[%clk 0:03:00]}  e6 {[%clk 0:02:58]} 5. Nf3 {[%clk 0:03:00]}  Be7 {[%clk 0:02:57]} 6. Qc2 {[%clk 0:02:58]}  O-O {[%clk 0:02:56]} 7. b3 {[%clk 0:02:58]}  a6 {[%clk 0:02:55]} 8. Bb2 {[%clk 0:02:58]}  b5 {[%clk 0:02:54]} 9. Bd3 {[%clk 0:02:56]}  Bb7 {[%clk 0:02:49]} 10. O-O {[%clk 0:02:52]}  Nbd7 {[%clk 0:02:47]} 11. Rfd1 {[%clk 0:02:38]}  bxc4 {[%clk 0:02:46]} 12. bxc4 {[%clk 0:02:38]}  c5 {[%clk 0:02:47]} 13. cxd5 {[%clk 0:02:31]}  cxd4 {[%clk 0:02:31]} 14. Nxd4 {[%clk 0:02:23]}  exd5 {[%clk 0:02:22]} 15. Nf5 {[%clk 0:01:52]}  Bb4 {[%clk 0:02:10]} 16. Ne2 {[%clk 0:01:44]}  Rc8 {[%clk 0:02:07]} 17. Qb3 {[%clk 0:01:36]}  a5 {[%clk 0:02:03]} 18. a3 {[%clk 0:01:01]}  Nc5 {[%clk 0:02:01]} 19. Qa2 {[%clk 0:00:58]}  Nxd3 {[%clk 0:01:55]} 20. Rxd3 {[%clk 0:00:58]}  Bc5 {[%clk 0:01:47]} 21. Rad1 {[%clk 0:00:55]}  Ba6 {[%clk 0:01:42]} 22. R3d2 {[%clk 0:00:43]}  Qd7 {[%clk 0:01:27]} 23. Neg3 {[%clk 0:00:34]}  g6 {[%clk 0:01:23]} 24. Bxf6 {[%clk 0:00:32]}  Bc4 {[%clk 0:01:18]} 25. Qb1 {[%clk 0:00:31]}  gxf5 {[%clk 0:01:15]} 26. Nxf5 {[%clk 0:00:30]}  Rfe8 {[%clk 0:00:46]} 27. Nh6+ {[%clk 0:00:30]}  Kf8 {[%clk 0:00:11]} 28. Qxh7 {[%clk 0:00:30]} 1-0

[Event "January 9 Late 2024"]
[Site "https://www.chess.com"]
[Date "2024.01.10"]
[Round "8"]
[White "Burke, Paul"]
[Black "Haack, Kevin"]
[Result "1-0"]
[Board "157"]
[TimeControl "180+1"]
[WhiteFideId "2605767"]
[BlackFideId "16228715"]
[WhiteElo "1894"]
[BlackElo "2289"]
[WhiteTeam "CAN"]
[BlackTeam "GER"]
[WhiteClock "0:00:12"]
[BlackClock "0:00:25"]

1. e4 {[%clk 0:03:00]}  e6 {[%clk 0:02:50]} 2. d4 {[%clk 0:03:00]}  d5 {[%clk 0:02:50]} 3. e5 {[%clk 0:03:00]}  c5 {[%clk 0:02:50]} 4. Qg4 {[%clk 0:03:00]}  cxd4 {[%clk 0:02:46]} 5. Nf3 {[%clk 0:02:59]}  Nc6 {[%clk 0:02:44]} 6. Bd3 {[%clk 0:02:59]}  Nge7 {[%clk 0:02:33]} 7. O-O {[%clk 0:02:58]}  Ng6 {[%clk 0:02:33]} 8. Qg3 {[%clk 0:02:57]}  Qc7 {[%clk 0:02:25]} 9. Re1 {[%clk 0:02:55]}  Bd7 {[%clk 0:02:24]} 10. c3 {[%clk 0:02:55]}  dxc3 {[%clk 0:02:23]} 11. Nxc3 {[%clk 0:02:55]}  a6 {[%clk 0:02:23]} 12. a3 {[%clk 0:02:54]}  O-O-O {[%clk 0:02:13]} 13. Bd2 {[%clk 0:02:53]}  Kb8 {[%clk 0:02:10]} 14. Rac1 {[%clk 0:02:53]}  Ka8 {[%clk 0:01:50]} 15. b4 {[%clk 0:02:51]}  b5 {[%clk 0:01:48]} 16. Bxb5 {[%clk 0:02:23]}  axb5 {[%clk 0:01:47]} 17. Nxb5 {[%clk 0:02:23]}  Qb7 {[%clk 0:01:45]} 18. Nd6 {[%clk 0:02:20]}  Bxd6 {[%clk 0:01:45]} 19. exd6 {[%clk 0:02:19]}  Rc8 {[%clk 0:01:35]} 20. h4 {[%clk 0:01:54]}  h5 {[%clk 0:01:28]} 21. Ng5 {[%clk 0:01:45]}  Rhf8 {[%clk 0:01:15]} 22. Nh7 {[%clk 0:01:42]}  Rfe8 {[%clk 0:01:13]} 23. Ng5 {[%clk 0:01:41]}  f6 {[%clk 0:00:51]} 24. Nxe6 {[%clk 0:01:39]}  Bxe6 {[%clk 0:00:47]} 25. Qxg6 {[%clk 0:01:38]}  Nd4 {[%clk 0:00:47]} 26. Qd3 {[%clk 0:01:18]}  Rxc1 {[%clk 0:00:43]} 27. Rxc1 {[%clk 0:01:17]}  Nb5 {[%clk 0:00:35]} 28. a4 {[%clk 0:00:54]}  Nxd6 {[%clk 0:00:33]} 29. b5 {[%clk 0:00:52]}  Nc4 {[%clk 0:00:33]} 30. Bb4 {[%clk 0:00:48]}  Rc8 {[%clk 0:00:32]} 31. Qe2 {[%clk 0:00:43]}  Ne5 {[%clk 0:00:31]} 32. Rxc8+ {[%clk 0:00:39]}  Qxc8 {[%clk 0:00:32]} 33. Bd6 {[%clk 0:00:34]}  Qc1+ {[%clk 0:00:29]} 34. Kh2 {[%clk 0:00:33]}  Ng4+ {[%clk 0:00:29]} 35. Kg3 {[%clk 0:00:27]}  Qc3+ {[%clk 0:00:29]} 36. f3 {[%clk 0:00:26]}  Ne5 {[%clk 0:00:25]} 37. b6 {[%clk 0:00:22]}  Bc8 {[%clk 0:00:25]} 38. Qb5 {[%clk 0:00:14]}  Qc6 {[%clk 0:00:25]} 39. Qa5+ {[%clk 0:00:13]}  Kb7 {[%clk 0:00:25]} 40. Qa7# {[%clk 0:00:12]} 1-0

[Event "January 9 Late 2024"]
[Site "https://www.chess.com"]
[Date "2024.01.09"]
[Round "8"]
[White "Ambrogi, Agustin"]
[Black "Winkels, Marcel"]
[Result "1-0"]
[Board "158"]
[TimeControl "180+1"]
[WhiteFideId "170933"]
[BlackFideId "1003887"]
[WhiteElo "2384"]
[BlackElo "2019"]
[WhiteTeam "ARG"]
[BlackTeam "NED"]
[WhiteClock "0:01:32"]
[BlackClock "0:00:06"]

1. e4 {[%clk 0:02:54]}  e6 {[%clk 0:02:55]} 2. d4 {[%clk 0:02:51]}  d5 {[%clk 0:02:55]} 3. Nc3 {[%clk 0:02:50]}  Bb4 {[%clk 0:02:53]} 4. e5 {[%clk 0:02:50]}  c5 {[%clk 0:02:52]} 5. Bd2 {[%clk 0:02:50]}  cxd4 {[%clk 0:02:50]} 6. Nb5 {[%clk 0:02:50]}  Be7 {[%clk 0:02:41]} 7. Nxd4 {[%clk 0:02:48]}  Nc6 {[%clk 0:02:40]} 8. Ngf3 {[%clk 0:02:48]}  f6 {[%clk 0:02:33]} 9. exf6 {[%clk 0:02:43]}  Nxf6 {[%clk 0:02:32]} 10. Nxc6 {[%clk 0:02:43]}  bxc6 {[%clk 0:02:31]} 11. Bd3 {[%clk 0:02:44]}  Qc7 {[%clk 0:02:17]} 12. Qe2 {[%clk 0:02:40]}  O-O {[%clk 0:02:10]} 13. O-O {[%clk 0:02:39]}  Bd6 {[%clk 0:02:07]} 14. Rae1 {[%clk 0:02:38]}  Bd7 {[%clk 0:02:02]} 15. h3 {[%clk 0:02:34]}  Rae8 {[%clk 0:02:01]} 16. Ne5 {[%clk 0:02:34]}  Bxe5 {[%clk 0:02:01]} 17. Qxe5 {[%clk 0:02:34]}  Qxe5 {[%clk 0:01:57]} 18. Rxe5 {[%clk 0:02:35]}  c5 {[%clk 0:01:57]} 19. Rfe1 {[%clk 0:02:33]}  c4 {[%clk 0:01:52]} 20. Bf1 {[%clk 0:02:33]}  Ne4 {[%clk 0:01:49]} 21. Be3 {[%clk 0:02:32]}  a5 {[%clk 0:01:47]} 22. Bxc4 {[%clk 0:02:27]}  Nxf2 {[%clk 0:01:26]} 23. Bxf2 {[%clk 0:02:28]}  dxc4 {[%clk 0:01:25]} 24. Rxa5 {[%clk 0:02:28]}  Rb8 {[%clk 0:01:08]} 25. Ra7 {[%clk 0:02:28]}  Bc8 {[%clk 0:01:04]} 26. Rd1 {[%clk 0:02:20]}  Rxb2 {[%clk 0:00:53]} 27. Bd4 {[%clk 0:02:20]}  Rb7 {[%clk 0:00:53]} 28. Rxb7 {[%clk 0:02:13]}  Bxb7 {[%clk 0:00:52]} 29. Be5 {[%clk 0:02:13]}  Bd5 {[%clk 0:00:52]} 30. Rb1 {[%clk 0:02:13]}  h6 {[%clk 0:00:51]} 31. Rb8 {[%clk 0:02:11]}  Rxb8 {[%clk 0:00:47]} 32. Bxb8 {[%clk 0:02:12]}  Kf7 {[%clk 0:00:46]} 33. Be5 {[%clk 0:02:13]}  Ke7 {[%clk 0:00:46]} 34. Bxg7 {[%clk 0:02:13]}  h5 {[%clk 0:00:46]} 35. g4 {[%clk 0:02:07]}  hxg4 {[%clk 0:00:46]} 36. hxg4 {[%clk 0:02:08]}  Kd6 {[%clk 0:00:46]} 37. Kf2 {[%clk 0:02:07]}  Kc5 {[%clk 0:00:45]} 38. Ke3 {[%clk 0:02:06]}  Kb4 {[%clk 0:00:44]} 39. Bf8+ {[%clk 0:01:45]}  Kc3 {[%clk 0:00:43]} 40. a4 {[%clk 0:01:43]}  Kxc2 {[%clk 0:00:42]} 41. a5 {[%clk 0:01:44]}  c3 {[%clk 0:00:42]} 42. a6 {[%clk 0:01:37]}  Kd1 {[%clk 0:00:37]} 43. a7 {[%clk 0:01:32]}  c2 {[%clk 0:00:36]} 44. Ba3 {[%clk 0:01:32]}  e5 {[%clk 0:00:06]} 45. g5 {[%clk 0:01:32]} 1-0

[Event "January 9 Late 2024"]
[Site "https://www.chess.com"]
[Date "2024.01.09"]
[Round "8"]
[White "Thake, Conrad"]
[Black "Slavin, Alexey"]
[Result "0-1"]
[Board "159"]
[TimeControl "180+1"]
[WhiteFideId "5602947"]
[BlackFideId "24104388"]
[WhiteElo "1852"]
[BlackElo "2280"]
[WhiteTeam "MLT"]
[BlackTeam "RUS"]
[WhiteClock "0:00:00"]
[BlackClock "0:00:15"]

1. c4 {[%clk 0:03:00]}  Nc6 {[%clk 0:02:59]} 2. Nc3 {[%clk 0:02:59]}  Nf6 {[%clk 0:02:58]} 3. g3 {[%clk 0:02:54]}  e5 {[%clk 0:02:57]} 4. d3 {[%clk 0:02:52]}  d5 {[%clk 0:02:56]} 5. cxd5 {[%clk 0:02:51]}  Nxd5 {[%clk 0:02:56]} 6. Bg2 {[%clk 0:02:51]}  Nxc3 {[%clk 0:02:56]} 7. bxc3 {[%clk 0:02:50]}  Bd6 {[%clk 0:02:57]} 8. Nf3 {[%clk 0:02:47]}  O-O {[%clk 0:02:57]} 9. O-O {[%clk 0:02:47]}  h6 {[%clk 0:02:55]} 10. Rb1 {[%clk 0:02:36]}  Rb8 {[%clk 0:02:49]} 11. a4 {[%clk 0:02:33]}  a6 {[%clk 0:02:49]} 12. d4 {[%clk 0:02:09]}  exd4 {[%clk 0:02:33]} 13. cxd4 {[%clk 0:02:09]}  Bf5 {[%clk 0:02:29]} 14. Ra1 {[%clk 0:01:44]}  Re8 {[%clk 0:02:27]} 15. Ba3 {[%clk 0:01:43]}  Nb4 {[%clk 0:02:22]} 16. Bxb4 {[%clk 0:01:38]}  Bxb4 {[%clk 0:02:22]} 17. e3 {[%clk 0:01:37]}  Bd6 {[%clk 0:02:15]} 18. Qb3 {[%clk 0:01:30]}  b5 {[%clk 0:02:09]} 19. axb5 {[%clk 0:01:28]}  axb5 {[%clk 0:02:09]} 20. Ra7 {[%clk 0:01:22]}  b4 {[%clk 0:02:08]} 21. Nh4 {[%clk 0:01:17]}  Be6 {[%clk 0:02:04]} 22. d5 {[%clk 0:01:14]}  Bd7 {[%clk 0:01:53]} 23. e4 {[%clk 0:01:10]}  Qf6 {[%clk 0:01:37]} 24. Raa1 {[%clk 0:00:36]}  Bg4 {[%clk 0:01:25]} 25. h3 {[%clk 0:00:30]}  Bd7 {[%clk 0:01:18]} 26. Rad1 {[%clk 0:00:26]}  Be5 {[%clk 0:01:10]} 27. f4 {[%clk 0:00:26]}  Bc3 {[%clk 0:01:09]} 28. e5 {[%clk 0:00:24]}  Qb6+ {[%clk 0:01:07]} 29. Kh2 {[%clk 0:00:24]}  Bb5 {[%clk 0:01:06]} 30. Rf3 {[%clk 0:00:21]}  Be2 {[%clk 0:01:04]} 31. Rxc3 {[%clk 0:00:18]}  bxc3 {[%clk 0:01:04]} 32. Qxb6 {[%clk 0:00:17]}  Rxb6 {[%clk 0:00:49]} 33. Rc1 {[%clk 0:00:17]}  Rb3 {[%clk 0:00:48]} 34. Nf5 {[%clk 0:00:16]}  Bd3 {[%clk 0:00:42]} 35. Nd4 {[%clk 0:00:15]}  Ra3 {[%clk 0:00:39]} 36. e6 {[%clk 0:00:15]}  Kf8 {[%clk 0:00:19]} 37. exf7 {[%clk 0:00:11]}  Kxf7 {[%clk 0:00:19]} 38. Ne6 {[%clk 0:00:11]}  Re7 {[%clk 0:00:18]} 39. g4 {[%clk 0:00:08]}  c2 {[%clk 0:00:16]} 40. f5 {[%clk 0:00:07]}  Rb3 {[%clk 0:00:15]} 41. Nd4 {[%clk 0:00:00]}  Rb1 {[%clk 0:00:15]} 0-1

[Event "January 9 Late 2024"]
[Site "https://www.chess.com"]
[Date "2024.01.10"]
[Round "8"]
[White "Floresvillar Gonzalez, Luis Migu"]
[Black "Wang, Alexander J"]
[Result "1-0"]
[Board "162"]
[TimeControl "180+1"]
[WhiteFideId "5100542"]
[BlackFideId "30955270"]
[WhiteElo "2131"]
[BlackElo "2210"]
[WhiteTeam "MEX"]
[BlackTeam "USA"]
[WhiteClock "0:00:51"]
[BlackClock "0:00:00"]

1. e4 {[%clk 0:02:58]}  c5 {[%clk 0:02:57]} 2. Nf3 {[%clk 0:02:58]}  d6 {[%clk 0:02:55]} 3. d4 {[%clk 0:02:56]}  cxd4 {[%clk 0:02:56]} 4. c3 {[%clk 0:02:54]}  dxc3 {[%clk 0:02:55]} 5. Nxc3 {[%clk 0:02:53]}  Nf6 {[%clk 0:02:53]} 6. Bc4 {[%clk 0:02:52]}  e6 {[%clk 0:02:52]} 7. e5 {[%clk 0:02:52]}  d5 {[%clk 0:02:32]} 8. exf6 {[%clk 0:02:48]}  dxc4 {[%clk 0:02:27]} 9. Qxd8+ {[%clk 0:02:35]}  Kxd8 {[%clk 0:02:27]} 10. Bg5 {[%clk 0:02:33]}  Ke8 {[%clk 0:02:23]} 11. O-O-O {[%clk 0:02:28]}  Bd7 {[%clk 0:01:48]} 12. Nd2 {[%clk 0:02:10]}  h6 {[%clk 0:01:17]} 13. Bh4 {[%clk 0:01:57]}  g5 {[%clk 0:01:06]} 14. Bg3 {[%clk 0:01:56]}  Bc6 {[%clk 0:01:04]} 15. f3 {[%clk 0:01:45]}  Nd7 {[%clk 0:01:03]} 16. Nxc4 {[%clk 0:01:42]}  Bc5 {[%clk 0:00:50]} 17. Nd6+ {[%clk 0:01:31]}  Bxd6 {[%clk 0:00:49]} 18. Bxd6 {[%clk 0:01:32]}  Rg8 {[%clk 0:00:37]} 19. Be7 {[%clk 0:01:23]}  Ne5 {[%clk 0:00:28]} 20. Ne4 {[%clk 0:01:17]}  Bxe4 {[%clk 0:00:26]} 21. fxe4 {[%clk 0:01:17]}  Ng6 {[%clk 0:00:25]} 22. Bd6 {[%clk 0:01:11]}  Rc8+ {[%clk 0:00:24]} 23. Kb1 {[%clk 0:01:09]}  Nf4 {[%clk 0:00:15]} 24. g3 {[%clk 0:01:07]}  Nh5 {[%clk 0:00:10]} 25. e5 {[%clk 0:01:06]}  g4 {[%clk 0:00:09]} 26. Rd4 {[%clk 0:01:04]}  Rg5 {[%clk 0:00:06]} 27. Rhd1 {[%clk 0:01:03]}  Kd7 {[%clk 0:00:01]} 28. Bf8+ {[%clk 0:00:55]}  Kc7 {[%clk 0:00:00]} 29. Bxh6 {[%clk 0:00:51]} 1-0

[Event "January 9 Late 2024"]
[Site "https://www.chess.com"]
[Date "2024.01.09"]
[Round "8"]
[White "Keuchel, Destynn"]
[Black "Garcia Correa, Jose Ricardo"]
[Result "0-1"]
[Board "163"]
[TimeControl "180+1"]
[WhiteFideId "30923018"]
[BlackFideId "5101832"]
[WhiteElo "2071"]
[BlackElo "2202"]
[WhiteTeam "USA"]
[BlackTeam "MEX"]
[WhiteClock "0:00:20"]
[BlackClock "0:00:08"]

1. e4 {[%clk 0:03:00]}  c5 {[%clk 0:03:00]} 2. c3 {[%clk 0:02:59]}  e6 {[%clk 0:03:01]} 3. d4 {[%clk 0:02:59]}  d5 {[%clk 0:03:02]} 4. dxc5 {[%clk 0:02:57]}  Bxc5 {[%clk 0:03:01]} 5. exd5 {[%clk 0:02:57]}  Qf6 {[%clk 0:03:01]} 6. Nf3 {[%clk 0:02:55]}  h6 {[%clk 0:02:59]} 7. Bb5+ {[%clk 0:02:52]}  Nd7 {[%clk 0:02:59]} 8. O-O {[%clk 0:02:39]}  Ne7 {[%clk 0:02:57]} 9. dxe6 {[%clk 0:02:36]}  Qxe6 {[%clk 0:02:55]} 10. Re1 {[%clk 0:02:36]}  Qb6 {[%clk 0:02:54]} 11. Qe2 {[%clk 0:02:26]}  a6 {[%clk 0:02:52]} 12. Bxd7+ {[%clk 0:02:25]}  Bxd7 {[%clk 0:02:53]} 13. b4 {[%clk 0:02:21]}  Bd6 {[%clk 0:02:50]} 14. Be3 {[%clk 0:02:21]}  Qc7 {[%clk 0:02:48]} 15. Bd4 {[%clk 0:02:19]}  O-O {[%clk 0:02:44]} 16. Nbd2 {[%clk 0:02:16]}  Nc6 {[%clk 0:02:39]} 17. Nb3 {[%clk 0:02:15]}  Rae8 {[%clk 0:02:37]} 18. Qd3 {[%clk 0:02:14]}  Rd8 {[%clk 0:02:32]} 19. h3 {[%clk 0:02:10]}  Bc8 {[%clk 0:02:30]} 20. Qe2 {[%clk 0:01:59]}  Be6 {[%clk 0:02:27]} 21. Rad1 {[%clk 0:01:54]}  b5 {[%clk 0:02:25]} 22. Nc5 {[%clk 0:01:50]}  Bc4 {[%clk 0:02:25]} 23. Qc2 {[%clk 0:01:44]}  a5 {[%clk 0:02:24]} 24. a3 {[%clk 0:01:42]}  a4 {[%clk 0:02:23]} 25. Qc1 {[%clk 0:01:37]}  Nxd4 {[%clk 0:02:12]} 26. cxd4 {[%clk 0:01:32]}  Bd5 {[%clk 0:02:10]} 27. Qe3 {[%clk 0:01:29]}  Bf4 {[%clk 0:02:05]} 28. Qe7 {[%clk 0:01:26]}  Qc6 {[%clk 0:02:02]} 29. Rd3 {[%clk 0:01:16]}  Qg6 {[%clk 0:01:58]} 30. Nh4 {[%clk 0:01:06]}  Qh5 {[%clk 0:01:57]} 31. g4 {[%clk 0:00:56]}  Qg5 {[%clk 0:01:49]} 32. Qxg5 {[%clk 0:00:56]}  hxg5 {[%clk 0:01:45]} 33. Nf5 {[%clk 0:00:55]}  Bc4 {[%clk 0:01:45]} 34. Rdd1 {[%clk 0:00:46]}  g6 {[%clk 0:01:38]} 35. Ne7+ {[%clk 0:00:39]}  Kg7 {[%clk 0:01:37]} 36. Nc6 {[%clk 0:00:39]}  Rd5 {[%clk 0:01:32]} 37. Ne7 {[%clk 0:00:36]}  Rd6 {[%clk 0:01:27]} 38. Re4 {[%clk 0:00:13]}  f5 {[%clk 0:00:55]} 39. gxf5 {[%clk 0:00:12]}  gxf5 {[%clk 0:00:55]} 40. Ree1 {[%clk 0:00:11]}  Kf6 {[%clk 0:00:53]} 41. f3 {[%clk 0:00:09]}  Bg3 {[%clk 0:00:50]} 42. Re3 {[%clk 0:00:09]}  Bf4 {[%clk 0:00:45]} 43. Ree1 {[%clk 0:00:09]}  Rf7 {[%clk 0:00:41]} 44. Nc8 {[%clk 0:00:08]}  Re6 {[%clk 0:00:38]} 45. Nxe6 {[%clk 0:00:07]}  Bxe6 {[%clk 0:00:38]} 46. Nb6 {[%clk 0:00:08]}  Bb3 {[%clk 0:00:37]} 47. Rd3 {[%clk 0:00:08]}  Bg3 {[%clk 0:00:35]} 48. d5 {[%clk 0:00:08]}  Bxe1 {[%clk 0:00:35]} 49. d6 {[%clk 0:00:08]}  Bc4 {[%clk 0:00:32]} 50. d7 {[%clk 0:00:09]}  Bxd3 {[%clk 0:00:31]} 51. d8=Q+ {[%clk 0:00:09]}  Kg6 {[%clk 0:00:29]} 52. Qxd3 {[%clk 0:00:10]}  Bg3 {[%clk 0:00:28]} 53. h4 {[%clk 0:00:09]}  gxh4 {[%clk 0:00:28]} 54. Qd5 {[%clk 0:00:09]}  Rf6 {[%clk 0:00:27]} 55. Qg8+ {[%clk 0:00:09]}  Kh5 {[%clk 0:00:25]} 56. Nd5 {[%clk 0:00:10]}  Rg6 {[%clk 0:00:24]} 57. Qh8+ {[%clk 0:00:10]}  Kg5 {[%clk 0:00:24]} 58. Kf1 {[%clk 0:00:11]}  f4 {[%clk 0:00:22]} 59. Qd8+ {[%clk 0:00:11]}  Kh6 {[%clk 0:00:22]} 60. Qh8+ {[%clk 0:00:11]}  Kg5 {[%clk 0:00:22]} 61. Qd8+ {[%clk 0:00:12]}  Kh6 {[%clk 0:00:22]} 62. Qe8 {[%clk 0:00:13]}  Kg5 {[%clk 0:00:12]} 63. Ke2 {[%clk 0:00:12]}  h3 {[%clk 0:00:11]} 64. Qe7+ {[%clk 0:00:11]}  Kh6 {[%clk 0:00:08]} 65. Qh4+ {[%clk 0:00:11]}  Bxh4 {[%clk 0:00:08]} 66. Nxf4 {[%clk 0:00:11]}  Rg2+ {[%clk 0:00:05]} 67. Kf1 {[%clk 0:00:11]}  Ra2 {[%clk 0:00:05]} 68. Nxh3 {[%clk 0:00:11]}  Rxa3 {[%clk 0:00:05]} 69. f4 {[%clk 0:00:12]}  Rb3 {[%clk 0:00:05]} 70. Kg2 {[%clk 0:00:13]}  Rxb4 {[%clk 0:00:05]} 71. f5 {[%clk 0:00:14]}  Rg4+ {[%clk 0:00:05]} 72. Kf3 {[%clk 0:00:14]}  Rg3+ {[%clk 0:00:04]} 73. Kf4 {[%clk 0:00:14]}  Rxh3 {[%clk 0:00:05]} 74. Kg4 {[%clk 0:00:14]}  Kg7 {[%clk 0:00:05]} 75. Kxh3 {[%clk 0:00:14]}  Bf6 {[%clk 0:00:06]} 76. Kg4 {[%clk 0:00:15]}  a3 {[%clk 0:00:07]} 77. Kf3 {[%clk 0:00:15]}  a2 {[%clk 0:00:08]} 78. Ke2 {[%clk 0:00:16]}  a1=Q {[%clk 0:00:08]} 79. Kd3 {[%clk 0:00:17]}  Qe5 {[%clk 0:00:08]} 80. Kc2 {[%clk 0:00:18]}  Qxf5+ {[%clk 0:00:08]} 81. Kb3 {[%clk 0:00:19]}  Qe4 {[%clk 0:00:09]} 82. Ka3 {[%clk 0:00:20]}  b4+ {[%clk 0:00:09]} 83. Ka2 {[%clk 0:00:21]}  Qe2+ {[%clk 0:00:09]} 84. Kb1 {[%clk 0:00:20]}  Qb2# {[%clk 0:00:08]} 0-1